[Event "44th Chess Olympiad Women 2022"]
[Site "Chennai"]
[Date "2022.07.30"]
[Round "2.38"]
[White "Mahdian, Anousha"]
[Black "Silva Rosas, Natalia"]
[Result "1-0"]
[ECO "A04"]
[WhiteElo "2161"]
[BlackElo "1780"]
[Annotator "TA"]
[PlyCount "125"]
[EventDate "2022.07.29"]
[EventType "team-tourn"]
[EventCountry "IND"]
[SourceTitle "playchess.com"]
[Source "ChessBase"]
[SourceQuality "1"]
[WhiteTeam "Iran"]
[BlackTeam "Uruguay"]
[WhiteTeamCountry "IRI"]
[BlackTeamCountry "URU"]
[TimeControl "40/5400+30:1800+30"]

{[%evp 9,125,45,71,74,93,68,71,58,61,48,56,13,16,18,8,-50,-47,-107,-40,-47,-32,-35,0,0,0,0,0,-22,0,0,11,8,10,0,8,0,35,0,0,0,0,0,0,0,0,0,0,0,0,-10,22,-222,58,82,64,54,55,36,32,0,43,22,12,14,50,43,51,51,89,84,106,76,178,201,322,344,396,393,550,550,642,635,615,600,1753,1736,1628,1635,1133,1456,29965,12793,29973,29971,29978,29974,29988,29989,29990,668,29987,29988,29988,29989,29994,29995,29995,29989,29992,29993,29995,29996,29996,29993,29993,29994,29998,29999]} 1. Nf3 {[%emt 0:00:02]} f5 {[%emt 0:00:37]} 2. d3 {[%emt 0:00:04]} g6 {[%emt 0:00:48]} 3. e4 {[%emt 0:00:50]} d6 {[%emt 0:00:40]} 4. exf5 {[%emt 0:00:09]} Bxf5 {[%emt 0:00:08]} 5. d4 {[%emt 0:00:03]} c6 {[%emt 0:00:32]} 6. Bd3 {[%emt 0:00:09] A04: Unusual lines after 1 Nf3 and King's Indian Attack.} Nf6 {[%emt 0:01:05]} 7. Bxf5 {[%emt 0:01:35]} Qa5+ {[%emt 0:00:02]} 8. Nc3 {[%emt 0:03:04] White is better.} Qxf5 {[%emt 0:00:08] [#]} 9. h3 $146 {[%emt 0:00:07]} ({Predecessor:} 9. Qe2 Na6 10. O-O Nc7 11. Re1 O-O-O 12. Ng5 Re8 13. Ne6 Nxe6 14. Qxe6+ Qxe6 15. Rxe6 Kd7 16. Re2 Bg7 17. f3 Nd5 18. Nxd5 cxd5 {½-½ (18) De Verdier,M (2147)-Ondrejat,M (2074) Marianske Lazne 2008}) 9... Bg7 {[%emt 0:00:55]} 10. Be3 {[%emt 0:00:09]} Na6 {[%emt 0:00:45]} 11. a3 {[%emt 0:00:42]} Nc7 {[%emt 0:01:02]} 12. g4 {[%emt 0:01:33]} (12. O-O $11) 12... Qd7 $15 {[%emt 0:01:30]} 13. Bg5 {[%emt 0:07:31]} (13. Ng5 $15) 13... Ncd5 {[%emt 0:01:47]} (13... O-O $17 {[%cal Of6g4] White must now prevent ...Nxg4!} 14. Be3 b6) 14. Nxd5 {[%emt 0:03:50]} cxd5 {[%emt 0:01:11]} 15. Bxf6 {[%emt 0:05:15]} Qe6+ {[%emt 0:01:34]} 16. Qe2 {[%emt 0:00:05]} Qxe2+ {[%emt 0:00:40]} 17. Kxe2 {[%emt 0:00:04]} Bxf6 {[%emt 0:01:27]} 18. Rhe1 {[%emt 0:07:49]} Rc8 {[%emt 0:01:08]} 19. c3 {[%emt 0:00:40]} g5 {[%emt 0:00:54]} 20. h4 {[%emt 0:02:39]} h6 {[%emt 0:00:58]} 21. Rh1 {[%emt 0:17:11]} Kf7 {[%emt 0:02:18]} 22. Rad1 {[%emt 0:12:02]} Rcg8 {[%emt 0:00:44]} 23. Rdg1 {[%emt 0:10:26]} e5 {[%emt 0:10:10]} 24. dxe5 {[%emt 0:06:32]} dxe5 {[%emt 0:00:04]} 25. h5 {[%emt 0:01:47]} Rc8 {[%emt 0:00:40]} 26. Rd1 {[%emt 0:01:27]} Rhd8 {[%emt 0:00:12]} 27. Nd2 {[%emt 0:00:54] Prevents Rc4.} Rc6 {[%emt 0:00:32]} 28. Rh3 {[%emt 0:04:58]} Rb6 {[%emt 0:01:46]} 29. b4 {[%emt 0:00:27]} Ra6 {[%emt 0:01:11]} 30. Rd3 $2 {[%emt 0:03:51] [#]} (30. c4 $11 {and White has nothing to worry.}) 30... Ke8 $2 {[%emt 0:02:53]} ({Weaker is} 30... Rxa3 31. Ne4 $11) (30... e4 $1 $19 {[%cal Re4d3]} 31. Re3 (31. Nxe4 $2 Re8 $19) 31... Rxa3) 31. c4 $14 {[%emt 0:02:07]} d4 {[%emt 0:04:53]} 32. Ne4 {[%emt 0:01:01]} Be7 {[%emt 0:04:23]} 33. Rf3 {[%emt 0:01:45]} Rc8 {[%emt 0:01:58]} 34. Rc1 {[%emt 0:00:27]} Rd8 {[%emt 0:00:27][%cal Od4d3]} 35. Rd3 {[%emt 0:00:36]} Kd7 {[%emt 0:00:59]} 36. Ng3 {[%emt 0:02:22]} Rf6 {[%emt 0:06:29]} 37. Nf5 {[%emt 0:01:18]} Bf8 {[%emt 0:00:21]} 38. Kf3 {[%emt 0:01:51]} Rc8 {[%emt 0:01:03] White now steadily converts the win.} 39. Ke4 {[%emt 0:00:29]} Ke6 {[%emt 0:00:34]} 40. Rc2 {[%emt 0:01:15] 0x0.002361109b5fdp-1022s more active pieces.} b5 {[%emt 0:00:30]} (40... Rf7 $16) 41. c5 $18 {[%emt 0:30:14]} a5 {[%emt 0:30:28]} (41... Rf7 {was called for.} 42. a4 a5) 42. bxa5 {[%emt 0:00:00][%cal Bb4a5,Ba5a6][%mdl 32]} Rf7 {[%emt 0:00:00]} 43. Rb3 {[%emt 0:00:00] Dancing on a razor blade.} Rfc7 {[%emt 0:00:00]} 44. Rxb5 {[%emt 0:00:00]} Bxc5 {[%emt 0:00:00]} 45. a6 {[%emt 0:00:00]} Rc6 {[%emt 0:00:00]} 46. Ra5 {[%emt 0:00:00]} Bb6 {[%emt 0:01:51]} 47. Rxc6+ {[%emt 0:00:00]} Rxc6 {[%emt 0:00:01]} 48. a7 {[%emt 0:00:00]} Bxa7 {[%emt 0:02:41]} 49. Rxa7 {[%emt 0:00:00][%mdl 4096] Endgame KRN-KR} Rc3 {[%emt 0:00:29]} 50. Ra6+ {[%emt 0:00:00]} Kf7 {[%emt 0:00:50]} 51. Kxe5 {[%emt 0:00:00]} d3 {[%emt 0:00:20]} 52. Nxh6+ {[%emt 0:00:00]} Kg7 {[%emt 0:00:15]} 53. Nf5+ {[%emt 0:00:00]} Kh7 {[%emt 0:00:21]} 54. Rh6+ {[%emt 0:00:00]} Kg8 {[%emt 0:00:08]} 55. Rd6 {[%emt 0:00:00] White mates.} Rxa3 {[%emt 0:00:36]} 56. Kf6 {[%emt 0:00:00]} Ra2 {[%emt 0:02:12]} 57. Kg6 {[%emt 0:00:00][%cal Rd6d8]} Ra8 {[%emt 0:01:03]} 58. Rxd3 {[%emt 0:00:00]} Kh8 {[%emt 0:00:32]} 59. Rd7 {[%emt 0:00:00]} Rg8+ {[%emt 0:01:02]} 60. Kh6 {[%emt 0:00:00][%csl Gh6][%cal Rd7h7]} Re8 {[%emt 0:00:58]} 61. Rh7+ {[%emt 0:00:00]} Kg8 {[%emt 0:00:06]} 62. Ne7+ {[%emt 0:00:00]} Kf8 {[%emt 0:00:27]} 63. Ng6+ {[%emt 0:00:00] Weighted Error Value: White=0.25 (precise) /Black=0.51} 1-0

[Event "44th Chess Olympiad Women 2022"]
[Site "Chennai"]
[Date "2022.07.30"]
[Round "2.38"]
[White "Asgharzadeh, Mitra"]
[Black "Malan, Lucia"]
[Result "1-0"]
[ECO "A08"]
[WhiteElo "1988"]
[BlackElo "1741"]
[Annotator "TA"]
[PlyCount "89"]
[EventDate "2022.07.29"]
[EventType "team-tourn"]
[EventCountry "IND"]
[SourceTitle "playchess.com"]
[Source "ChessBase"]
[SourceQuality "1"]
[WhiteTeam "Iran"]
[BlackTeam "Uruguay"]
[WhiteTeamCountry "IRI"]
[BlackTeamCountry "URU"]
[TimeControl "40/5400+30:1800+30"]

{[%evp 16,89,3,-8,111,31,68,71,57,58,59,47,105,106,126,115,110,106,161,162,165,125,129,122,234,231,251,224,224,221,225,227,231,213,247,241,248,228,227,213,244,243,276,273,270,266,278,281,271,220,293,301,300,285,320,272,435,434,423,391,445,441,376,381,808,783,1629,1429,6179,6179,29962,1907,29981,29982,29992,4898]} 1. Nf3 {[%emt 0:00:04]} d5 {[%emt 0:00:09]} 2. g3 {[%emt 0:00:12]} Nf6 {[%emt 0:00:10]} 3. Bg2 {[%emt 0:00:08]} e6 {[%emt 0:00:47]} 4. O-O {[%emt 0:00:14]} c5 {[%emt 0:00:36]} 5. d3 {[%emt 0:00:06]} Nc6 {[%emt 0:00:14]} 6. Nbd2 {[%emt 0:00:08]} Bd6 {[%emt 0:00:24]} 7. e4 {[%emt 0:00:13]} O-O {[%emt 0:01:23]} 8. Re1 {[%emt 0:00:13]} Qc7 {[%emt 0:01:50]} 9. Qe2 {[%emt 0:02:07]} Nb4 {[%emt 0:10:00] [#] A08: King's Indian Attack.} (9... Be7 $11) 10. Nf1 $146 {[%emt 0:07:29]} ({Resist} 10. e5 Nxc2 11. exd6 Qd8 $14) (10. c3 $1 $16 {[%cal Rc3b4]} Nc2 11. e5) ({Predecessor:} 10. e5 Nxc2 11. exd6 Qd8 12. Nb3 Nxa1 13. Nxa1 Qxd6 14. Nc2 b5 15. b3 a5 16. Bb2 Nd7 17. d4 {1-0 (32) Lopez Ortiz,J (2204)-Palencia Morales,G (2226) Villaguay 2017}) 10... dxe4 {[%emt 0:05:38]} 11. dxe4 {[%emt 0:00:28] e5 is the strong threat.} e5 {[%emt 0:00:32] White is better.} 12. c3 {[%emt 0:00:31]} Nc6 {[%emt 0:00:37]} 13. Bg5 {[%emt 0:00:26]} Be7 {[%emt 0:02:14]} ({Better is} 13... Ne8 $14) 14. Ne3 $16 {[%emt 0:06:57]} Be6 {[%emt 0:07:36] Prevents Nd5.} 15. Bxf6 {[%emt 0:01:39]} Bxf6 {[%emt 0:00:06]} 16. Nd5 {[%emt 0:00:14]} Bxd5 {[%emt 0:08:36]} (16... Qd7 $16) 17. exd5 $18 {[%emt 0:00:35]} Ne7 {[%emt 0:01:11]} 18. Nxe5 {[%emt 0:02:18]} Rad8 {[%emt 0:04:46]} 19. Rad1 {[%emt 0:02:53] Black must now prevent Ng4. White is more active.} Nf5 {[%emt 0:07:29] [#]} (19... Nc8 $16 20. Ng4 Be7) 20. Ng4 $1 {[%emt 0:08:31]} Qb6 {[%emt 0:04:17]} 21. Qf3 {[%emt 0:03:27]} h5 {[%emt 0:08:43]} 22. Nxf6+ {[%emt 0:06:07]} Qxf6 {[%emt 0:01:17]} 23. Qxh5 {[%emt 0:00:26]} Nd6 {[%emt 0:01:47]} 24. Qe5 {[%emt 0:11:31]} Qg6 {[%emt 0:03:24]} 25. Qf4 {[%emt 0:06:19]} Rfe8 {[%emt 0:08:38]} 26. h4 {[%emt 0:06:46]} Qc2 {[%emt 0:02:29]} 27. Qc1 {[%emt 0:02:31]} Qa4 {[%emt 0:03:26]} 28. Qb1 {[%emt 0:07:11]} Qc4 {[%emt 0:06:14]} 29. Rxe8+ {[%emt 0:06:08]} Rxe8 {[%emt 0:00:05]} 30. Bf1 {[%emt 0:00:15] Against Qe2} Qg4 {[%emt 0:01:53]} 31. Re1 {[%emt 0:01:43]} Rd8 {[%emt 0:02:30]} 32. Qd1 {[%emt 0:01:12]} Qf5 {[%emt 0:01:39]} 33. Bd3 {[%emt 0:01:58]} Qf6 {[%emt 0:01:06]} 34. Qh5 {[%emt 0:03:34]} g6 {[%emt 0:02:32]} 35. Qh6 {[%emt 0:00:55] And now h5 would win.} Nf5 {[%emt 0:02:08]} (35... c4 $142) 36. Bxf5 {[%emt 0:00:42]} Qxf5 {[%emt 0:00:04][%mdl 4096] Endgame KQR-KQR} 37. c4 {[%emt 0:00:34]} b5 {[%emt 0:00:14]} 38. b3 {[%emt 0:01:13]} bxc4 {[%emt 0:00:28]} 39. bxc4 {[%emt 0:00:02]} Qc2 $2 {[%emt 0:00:09]} (39... Qg4 40. Qc1 Kg7) 40. Qg5 {[%emt 0:01:13]} Rf8 {[%emt 0:00:51]} 41. h5 {[%emt 0:31:41] aiming for d6.} Kh7 {[%emt 0:31:44]} 42. d6 {[%emt 0:03:14][%cal Bd5d6,Bd6d7][%mdl 32] d7 would kill now.} Qf5 {[%emt 0:00:00]} 43. Qe7 {[%emt 0:00:00]} (43. hxg6+ $142 fxg6 44. Re7+ Kg8 45. Qxf5 gxf5 46. d7 Rd8 47. Re8+ Kf7 48. Rxd8) 43... Kg8 {[%emt 0:00:00]} 44. d7 {[%emt 0:00:00]} Qd3 {[%emt 0:00:00] [#]} 45. Qxf8+ $3 {[%emt 0:00:00][%mdl 512] Weighted Error Value: White=0.12 (very precise) /Black=0.71} 1-0

[Event "44th Chess Olympiad Women 2022"]
[Site "Chennai"]
[Date "2022.07.30"]
[Round "2.38"]
[White "Roepke, Sofia"]
[Black "Zahedifar, Anahita"]
[Result "0-1"]
[ECO "B13"]
[WhiteElo "1869"]
[BlackElo "2160"]
[Annotator "TA"]
[PlyCount "96"]
[EventDate "2022.07.29"]
[EventType "team-tourn"]
[EventCountry "IND"]
[SourceTitle "playchess.com"]
[Source "ChessBase"]
[SourceQuality "1"]
[WhiteTeam "Uruguay"]
[BlackTeam "Iran"]
[WhiteTeamCountry "URU"]
[BlackTeamCountry "IRI"]
[TimeControl "40/5400+30:1800+30"]

{[%evp 14,96,24,16,40,41,61,52,49,62,51,42,54,46,59,46,58,27,43,18,50,28,15,17,28,16,16,-14,-12,-10,-10,-108,-126,-143,-132,-134,-156,-137,-135,-227,-228,-234,-241,-213,-195,-294,-201,-342,-229,-233,-230,-284,-271,-266,-205,-247,-218,-213,-175,-546,-546,-531,-512,-577,-564,-686,-681,-745,-746,-738,-738,-1072,-1022,-1041,-1041,-1072,-1073,-1386,-1111,-5695,-2229,-6211,-6199,-6311,-6438]} 1. e4 {[%emt 0:00:03]} c6 {[%emt 0:00:10]} 2. d4 {[%emt 0:00:04]} d5 {[%emt 0:00:05]} 3. exd5 {[%emt 0:00:05]} cxd5 {[%emt 0:00:06]} 4. Bd3 {[%emt 0:00:05]} Nf6 {[%emt 0:00:23]} 5. h3 {[%emt 0:00:10]} Nc6 {[%emt 0:00:09]} 6. c3 {[%emt 0:00:07]} e5 {[%emt 0:00:54]} 7. dxe5 {[%emt 0:00:14]} Nxe5 {[%emt 0:00:06]} 8. Nf3 {[%emt 0:00:10]} Nxf3+ {[%emt 0:03:17] B13: Caro-Kann: Exchange Variation and Panov-Botvinnik Attack.} 9. Qxf3 {[%emt 0:00:08]} Be7 {[%emt 0:03:55]} 10. O-O {[%emt 0:02:26]} O-O {[%emt 0:02:33] White is slightly better.} 11. Be3 {[%emt 0:07:29] [#]} Bd7 $146 {[%emt 0:01:58]} ({Predecessor:} 11... Be6 12. Nd2 a6 13. a4 Rc8 14. Rfe1 Re8 15. Bd4 Qd7 16. Nf1 Rc6 17. Ng3 Bd8 {1-0 (34) Felczer,K (2217)-Wolff,P (1882) Hanau 2013}) 12. Bd4 {[%emt 0:05:31]} Bc6 {[%emt 0:05:13]} 13. Nd2 {[%emt 0:02:51] Against Ne4} Qd6 {[%emt 0:13:48]} 14. Rfe1 {[%emt 0:05:06]} Nd7 {[%emt 0:07:33]} 15. Re3 {[%emt 0:31:05]} g6 {[%emt 0:11:34]} 16. Nb3 {[%emt 0:06:08]} a5 {[%emt 0:06:40]} 17. Rae1 {[%emt 0:13:34]} (17. Bf5 $5) 17... Bg5 {[%emt 0:03:00]} 18. R3e2 $1 {[%emt 0:02:23]} a4 {[%emt 0:03:13]} 19. Nd2 {[%emt 0:03:28]} Nc5 {[%emt 0:02:14]} 20. Bxc5 {[%emt 0:02:02]} Qxc5 {[%emt 0:03:59]} 21. Qg4 {[%emt 0:01:50]} Bf6 {[%emt 0:02:33]} 22. Nf3 {[%emt 0:00:44]} (22. a3 $11 {keeps the balance.}) 22... a3 $17 {[%emt 0:01:46] White is on the road to losing.} 23. Rc1 {[%emt 0:09:27]} axb2 {[%emt 0:02:42]} 24. Rxb2 {[%emt 0:00:05]} Ra4 {[%emt 0:01:05][%cal Ba8a4,Ba4c4,Bc4c3][%mdl 32] Inhibits Qf4.} 25. Qg3 {[%emt 0:01:38]} Rfa8 {[%emt 0:01:46]} 26. Bb1 {[%emt 0:00:16]} (26. Rcc2 $17) 26... Qa3 $19 {[%emt 0:04:06]} ({Wrong is} 26... Bxc3 $2 27. Re2) 27. Rcc2 {[%emt 0:01:34]} Rc4 {[%emt 0:01:57]} ({Resist} 27... Bxc3 28. Rb3 $18) 28. Rb3 {[%emt 0:02:12]} Qe7 {[%emt 0:00:26] aiming for ...Ba4.} 29. Rbb2 {[%emt 0:02:45]} (29. Rc1 {is a better defense.}) 29... Rxc3 {[%emt 0:00:41]} 30. Re2 {[%emt 0:00:39]} (30. Rxc3 {is the only way for White.} Bxc3 31. Rb3) 30... Rc1+ {[%emt 0:00:44]} 31. Kh2 {[%emt 0:00:04]} Qc5 {[%emt 0:04:28]} 32. Rbc2 {[%emt 0:00:05]} Rxc2 {[%emt 0:01:04]} 33. Rxc2 {[%emt 0:00:23]} Qa3 {[%emt 0:02:36]} 34. Qf4 {[%emt 0:00:39]} Qe7 {[%emt 0:01:08]} 35. Rc1 {[%emt 0:00:21]} Re8 {[%emt 0:02:10][%cal Od5d4,Ba8e8,Be8e5,Be5e2,Be2b2,Bb2a2,Ba2a3][%mdl 32]} 36. Re1 $2 {[%emt 0:00:55] [#]} (36. Kg1) 36... Qxe1 {[%emt 0:00:33] Black is clearly winning.} 37. Nxe1 {[%emt 0:01:34]} Be5 {[%emt 0:00:05]} 38. Qxe5 {[%emt 0:00:06]} Rxe5 {[%emt 0:00:01][%mdl 4096] Endgame KRB-KBN} 39. Nf3 {[%emt 0:00:17]} Re2 {[%emt 0:00:06]} 40. Kg3 {[%emt 0:00:03]} Rb2 {[%emt 0:00:08]} 41. Bd3 {[%emt 0:30:50]} Rxa2 {[%emt 0:30:14] [#] And now ...Ra3 would win.} 42. Ne5 {[%emt 0:00:57]} f6 {[%emt 0:00:22]} 43. Nf3 {[%emt 0:00:25]} Ra3 {[%emt 0:00:08]} 44. Be2 {[%emt 0:00:09]} d4 {[%emt 0:00:42][%cal Bd5d4,Bd4d3,Bd3d2][%mdl 32] ...d3 is the strong threat.} 45. Kf4 {[%emt 0:00:40]} g5+ {[%emt 0:00:45]} 46. Kf5 {[%emt 0:00:19]} d3 {[%emt 0:00:04]} 47. Bd1 {[%emt 0:00:09]} Bxf3 {[%emt 0:00:10]} 48. Bxf3 {[%emt 0:00:34]} d2 {[%emt 0:00:06] Weighted Error Value: White=0.58/Black=0.11 (very precise)} 0-1

[Event "44th Chess Olympiad Women 2022"]
[Site "Chennai"]
[Date "2022.07.30"]
[Round "2.38"]
[White "Quevedo, Andreina"]
[Black "Masoumi, Sahar"]
[Result "0-1"]
[ECO "B33"]
[WhiteElo "1841"]
[BlackElo "1956"]
[Annotator "TA"]
[PlyCount "82"]
[EventDate "2022.07.29"]
[EventType "team-tourn"]
[EventCountry "IND"]
[SourceTitle "playchess.com"]
[Source "ChessBase"]
[SourceQuality "1"]
[WhiteTeam "Uruguay"]
[BlackTeam "Iran"]
[WhiteTeamCountry "URU"]
[BlackTeamCountry "IRI"]
[TimeControl "40/5400+30:1800+30"]

{[%evp 20,82,25,12,12,5,4,0,-6,-27,-15,-12,68,52,120,43,34,36,43,38,29,35,37,16,14,11,46,0,0,0,0,-46,-31,-34,-33,-97,-36,-52,-39,-87,-19,-39,-18,-191,-192,-189,-189,-1886,-844,-832,-394,-380,-351,-543,-543,-993,-994,-29992,-29993,-29997,-29991,-29991,-29992,-29993,-1321]} 1. e4 {[%emt 0:00:15]} c5 {[%emt 0:00:13]} 2. Nf3 {[%emt 0:00:09][%cal Bg1f3,Bf3d4,Bd4b5,Bb5a3,Ba3c2][%mdl 32]} Nc6 {[%emt 0:00:07]} 3. d4 {[%emt 0:00:08]} cxd4 {[%emt 0:00:08]} 4. Nxd4 {[%emt 0:00:06]} Nf6 {[%emt 0:00:12]} 5. Nc3 {[%emt 0:00:17]} e5 {[%emt 0:00:09]} 6. Ndb5 {[%emt 0:05:09]} d6 {[%emt 0:00:09]} 7. Bg5 {[%emt 0:00:18]} a6 {[%emt 0:00:09]} 8. Na3 {[%emt 0:00:05]} b5 {[%emt 0:00:14]} 9. Nd5 {[%emt 0:00:30]} Be7 {[%emt 0:00:10]} 10. Bxf6 {[%emt 0:01:06]} Bxf6 {[%emt 0:00:07]} 11. c4 {[%emt 0:00:17]} b4 {[%emt 0:00:12] B33: Sicilian: Pelikan and Sveshnikov Variations.} 12. Nc2 {[%emt 0:00:06]} O-O $1 {[%emt 0:00:21][%mdl 4] is currently scoring better than 12...a5.} 13. Qf3 {[%emt 0:01:34]} Bg5 {[%emt 0:08:09] The position is equal.} 14. h4 {[%emt 0:01:45]} Bh6 {[%emt 0:00:12]} 15. g4 {[%emt 0:03:50] Inhibits f5. And now g5 would win.} Bf4 {[%emt 0:00:44]} ({Black should try} 15... f6 $1 $11) 16. Nxf4 {[%emt 0:06:43] Pair of Knights!} Qf6 {[%emt 0:02:24] [#]} (16... exf4 $14 17. Qxf4 Qa5) 17. g5 {[%emt 0:08:41]} (17. O-O-O $1 $16) 17... Qxf4 $14 {[%emt 0:00:08]} 18. Qxf4 {[%emt 0:00:04]} exf4 {[%emt 0:00:06] [#]} 19. f3 $146 {[%emt 0:10:05]} ({Predecessor:} 19. O-O-O Bg4 20. Rxd6 Bf3 21. Rg1 Bxe4 22. Bg2 Bxg2 23. Rxg2 Ne5 24. Nxb4 Nxc4 25. Rd4 Rfc8 26. Kb1 Rab8 27. Nd3 Na3+ {0-1 (27) Wachinger,G (2215)-Strybuk,A (2263) Chess.com INT 2022}) 19... f5 {[%emt 0:16:44]} 20. gxf6 {[%emt 0:05:20]} (20. exf5 {with more complications.} Re8+ 21. Kf2 b3 22. Ne1) 20... Rxf6 {[%emt 0:00:07]} 21. b3 {[%emt 0:12:24]} a5 {[%emt 0:05:05]} 22. Be2 {[%emt 0:03:04]} Bb7 {[%emt 0:08:25]} 23. Kf2 {[%emt 0:03:23]} (23. O-O-O $14) 23... a4 $11 {[%emt 0:03:39]} 24. Rhd1 {[%emt 0:12:39]} Rh6 {[%emt 0:05:32]} 25. Rh1 {[%emt 0:15:42]} (25. Ne1 $11) 25... Ra5 {[%emt 0:04:03]} 26. bxa4 {[%emt 0:03:45]} Rxa4 {[%emt 0:02:32]} 27. Rab1 {[%emt 0:00:06]} (27. Bd1 $1 $15) 27... Ba6 {[%emt 0:08:03]} ({Black should play} 27... Rxa2 $17 28. Nxb4 Nxb4 29. Rxb4 Ba6) 28. Rb2 $15 {[%emt 0:01:02][%cal Oa2a3]} Kf8 {[%emt 0:07:54]} 29. Kg2 {[%emt 0:04:22]} (29. Ne1 $15) 29... Ne5 {[%emt 0:03:46]} (29... Rh5 $17) 30. Nxb4 {[%emt 0:01:28]} Bxc4 {[%emt 0:00:30]} 31. Bd1 {[%emt 0:00:58] This move loses the game for White.} (31. Bxc4 $11 Nxc4 32. Rb3) 31... Rg6+ $19 {[%emt 0:01:30]} 32. Kh2 {[%emt 0:00:31]} Ra3 {[%emt 0:00:50]} 33. Nc2 $2 {[%emt 0:00:33]} (33. Rg1) 33... Rd3 {[%emt 0:12:04]} (33... Rxf3 $142 34. Rg1 Rf2+ 35. Kh1 Rxg1+ 36. Kxg1 Rf1+ 37. Kg2 Rxd1) 34. Nb4 {[%emt 0:00:33]} Nxf3+ {[%emt 0:00:29]} (34... Rxf3 $142 35. Rg1 Rxg1 36. Kxg1 Rf1+ 37. Kg2 Rxd1) 35. Bxf3 {[%emt 0:00:04]} Rxf3 {[%emt 0:00:04]} 36. Nd5 {[%emt 0:00:57]} (36. Rg1 $142 Rh6 37. Kg2) 36... Rg4 {[%emt 0:05:11] [#] aiming for ...Bxd5.} 37. Rb8+ {[%emt 0:00:23]} Kf7 {[%emt 0:00:06] ( -> ...Rf2+)} 38. h5 {[%emt 0:00:36]} Bxd5 {[%emt 0:01:27] Black mates.} 39. Re1 {[%emt 0:00:30]} Rh4+ {[%emt 0:00:37]} 40. Kg2 {[%emt 0:00:04]} Rg3+ {[%emt 0:00:04]} 41. Kf2 {[%emt 0:30:04]} Rh2+ {[%emt 0:30:05] Weighted Error Value: White=0.85/Black=0.48} 0-1

[Event "44th Chess Olympiad Women 2022"]
[Site "Chennai"]
[Date "2022.07.30"]
[Round "2.39"]
[White "Frayna, Janelle Mae"]
[Black "Granados Diaz, Maria Esther"]
[Result "1-0"]
[ECO "B30"]
[WhiteElo "2224"]
[BlackElo "1888"]
[Annotator "TA"]
[PlyCount "57"]
[EventDate "2022.07.29"]
[EventType "team-tourn"]
[EventCountry "IND"]
[SourceTitle "playchess.com"]
[Source "ChessBase"]
[SourceQuality "1"]
[WhiteTeam "Philippines"]
[BlackTeam "Nicaragua"]
[WhiteTeamCountry "PHI"]
[BlackTeamCountry "NCA"]
[TimeControl "40/5400+30:1800+30"]

{[%evp 9,57,58,63,57,63,58,64,54,61,23,33,29,50,14,79,68,56,14,13,8,18,18,47,37,47,48,58,32,74,74,71,74,81,62,65,56,66,70,50,40,121,116,122,133,115,114,414,387,407,397]} 1. e4 {[%emt 0:00:02]} c5 {[%emt 0:00:38]} 2. Nf3 {[%emt 0:00:30]} Nc6 {[%emt 0:00:22]} 3. Bb5 {[%emt 0:00:49]} g6 {[%emt 0:00:05]} 4. O-O {[%emt 0:01:15]} Nd4 {[%emt 0:00:28]} 5. Nxd4 {[%emt 0:00:37]} cxd4 {[%emt 0:00:05]} 6. c3 {[%emt 0:00:06] White is more active. B30: Sicilian: 2...Nc6 3 Bb5, lines without ...g6.} Bg7 {[%emt 0:03:14]} 7. cxd4 {[%emt 0:02:30]} Bxd4 {[%emt 0:00:11]} 8. Nc3 {[%emt 0:00:03][%cal Bb1c3,Bc3e2,Be2g3][%mdl 32] White is slightly better.} a6 {[%emt 0:00:35] [#]} 9. Ne2 $146 {[%emt 0:08:01]} ({Predecessor:} 9. Ba4 b5 10. Bb3 d6 11. Ne2 Bg7 12. d4 Nf6 13. e5 dxe5 14. dxe5 Qxd1 15. Rxd1 {1-0 (52) De Silva,L (2085)-Postny,E (2568) Chess.com INT 2021}) 9... Bg7 {[%emt 0:00:27]} 10. Ba4 {[%emt 0:02:45][%cal Bb5a4,Ba4c2,Bc2e4][%mdl 32]} Nf6 {[%emt 0:00:47]} 11. e5 {[%emt 0:02:56]} Ng4 {[%emt 0:05:38]} (11... Nd5 $11) 12. d4 $16 {[%emt 0:00:49]} O-O {[%emt 0:00:21]} 13. Ng3 {[%emt 0:08:43]} d6 {[%emt 0:01:42]} 14. h3 {[%emt 0:01:01]} Nh6 {[%emt 0:00:29]} 15. Bc2 {[%emt 0:02:13]} Qc7 {[%emt 0:14:09]} 16. Bf4 $36 {[%emt 0:05:32][%mdl 2048] White is more active.} dxe5 {[%emt 0:00:25]} 17. dxe5 {[%emt 0:00:04]} Be6 {[%emt 0:09:49]} 18. Be4 {[%emt 0:04:31]} Rfd8 {[%emt 0:09:30]} 19. Qf3 {[%emt 0:05:20]} Nf5 {[%emt 0:15:43]} 20. Bxf5 {[%emt 0:02:51]} ({Inferior is} 20. Bxb7 Nd4 21. Qe4 Bf5 $17) 20... gxf5 {[%emt 0:02:47]} 21. Rac1 {[%emt 0:06:07]} (21. Nh5 {is more complex.} Bf8 22. Qg3+ Kh8 23. Rfc1) 21... Qb6 {[%emt 0:07:33]} 22. b3 {[%emt 0:09:31]} Qb5 {[%emt 0:10:23]} 23. Rfe1 {[%emt 0:02:30]} Rd3 {[%emt 0:08:53]} 24. Qh5 {[%emt 0:03:25] Hoping for Qg5.} Qd7 {[%emt 0:01:14]} (24... Qb4 $14 25. Be3 (25. Qg5 h6 $11) 25... Bxe5) 25. Rcd1 {[%emt 0:04:26]} Rd8 {[%emt 0:00:15][%cal Rd3d1]} 26. Rxd3 {[%emt 0:02:46]} Qxd3 {[%emt 0:00:01]} 27. Qg5 {[%emt 0:04:11] [#] aiming for Nh5.} Qc3 $2 {[%emt 0:03:16][%mdl 8192]} (27... f6 $16 28. exf6 exf6) 28. Rc1 {[%emt 0:00:44]} h6 {[%emt 0:00:54]} 29. Qxg7+ {[%emt 0:00:24] Weighted Error Value: White=0.09 (flawless) /Black=0.31} ({Weaker is} 29. Rxc3 hxg5 30. Bxg5 Bxe5 $17) 1-0